bitfinex/quotes_SOLUSD_20240711
["timestamp","ask_amount","ask_price","bid_price","bid_amount"]
[1720735869159,27.2877,137.22,137.19,20.0]
[1720735869543,7.2881,137.21,137.19,20.0]
[1720735869853,20.0,137.22,137.19,10.0]
[1720735869854,20.0,137.2,137.19,10.0]
[1720735871048,20.0,137.2,137.17,20.0]
[1720735872767,20.0,137.21,137.17,20.0]
[1720735873144,7.2887,137.2,137.17,20.0]
[1720735873341,20.0,137.21,137.17,20.0]
[1720735873556,20.0,137.21,137.12,50.871]
[1720735873557,20.0,137.23,137.15,10.0]
[1720735874343,7.2892,137.19,137.15,10.0]
[1720735874859,20.0,137.23,137.17,10.0]
[1720735875059,7.2882,137.21,137.17,10.0]
[1720735875254,20.0,137.2,137.17,10.0]
[1720735875947,20.0,137.21,137.17,10.0]
[1720735876141,27.2883,137.21,137.17,10.0]
[1720735877638,20.0,137.21,137.17,10.0]
[1720735877846,27.2881,137.21,137.17,10.0]
[1720735878658,41.6081,137.21,137.17,10.0]
[1720735878858,41.6081,137.21,137.16,24.32]
[1720735878859,20.0,137.21,137.19,10.0]
[1720735879454,21.6071,137.23,137.19,10.0]
[1720735879455,20.0,137.22,137.19,10.0]
[1720735879965,34.32,137.22,137.19,10.0]
[1720735880351,41.6075,137.22,137.19,10.0]
[1720735881162,27.2875,137.22,137.19,10.0]
[1720735881570,7.2881,137.21,137.19,10.0]
[1720735881867,20.0,137.2,137.19,10.0]
[1720735882444,27.289,137.2,137.18,10.0]
[1720735882645,34.32,137.2,137.18,10.0]
[1720735882968,21.6091,137.19,137.18,10.0]
[1720735883152,41.6091,137.19,137.15,20.0]
[1720735883467,7.2897,137.18,137.15,20.0]
[1720735883966,21.6097,137.18,137.15,20.0]
[1720735884266,21.6103,137.17,137.13,20.0]
[1720735884454,20.0,137.16,137.13,20.0]
[1720735884651,27.2907,137.16,137.13,20.0]
[1720735884853,34.32,137.16,137.13,20.0]
[1720735885164,20.0,137.16,137.13,20.0]
[1720735885352,34.32,137.16,137.13,20.0]
[1720735885747,20.0,137.16,137.13,20.0]
[1720735885953,20.0,137.17,137.15,10.0]
[1720735886153,20.0,137.18,137.15,10.0]
[1720735886757,7.2896,137.18,137.15,10.0]
[1720735886962,20.0,137.17,137.15,10.0]
[1720735887150,20.0,137.17,137.15,20.0]
[1720735888352,20.0,137.19,137.15,20.0]
[1720735888554,7.2897,137.18,137.15,20.0]
[1720735888851,7.2903,137.17,137.13,20.0]
[1720735889051,27.2908,137.16,137.13,20.0]
[1720735889270,7.2913,137.15,137.13,20.0]
[1720735889477,7.2913,137.15,137.13,10.0]
[1720735890068,27.2909,137.16,137.13,10.0]
[1720735890469,27.2909,137.16,137.11,20.0]
[1720735890680,27.2909,137.16,137.12,45.17]
[1720735891459,7.2914,137.15,137.11,20.0]
[1720735891781,20.0,137.14,137.11,20.0]
[1720735892157,27.2919,137.14,137.11,20.0]
[1720735892369,7.2923,137.13,137.09,10.0]
[1720735892578,20.0,137.12,137.09,10.0]
[1720735892961,20.0,137.12,137.07,10.0]
[1720735892962,7.2935,137.11,137.07,10.0]
[1720735893166,20.0,137.12,137.09,10.0]
[1720735893497,20.0,137.12,137.08,10.0]
[1720735893666,20.0,137.11,137.08,10.0]
[1720735893980,20.0,137.11,137.07,10.0]
[1720735894161,20.0,137.11,137.09,10.0]
[1720735894367,20.0,137.11,137.08,10.0]
[1720735895476,27.2935,137.11,137.07,10.0]
[1720735895676,20.0,137.11,137.08,10.0]
[1720735895881,20.0,137.11,137.07,10.0]
[1720735895882,27.2934,137.11,137.07,10.0]
[1720735897965,20.0,137.11,137.05,10.0]
[1720735898201,7.2939,137.1,137.06,10.0]
[1720735898469,20.0,137.09,137.06,10.0]
[1720735898680,20.0,137.09,137.05,10.0]
[1720735899190,20.0,137.09,137.06,10.0]
[1720735899481,20.0,137.14,137.06,10.0]
[1720735900668,7.2939,137.1,137.06,10.0]
[1720735900869,20.0,137.09,137.06,10.0]
[1720735902963,27.2947,137.09,137.06,10.0]
[1720735903477,20.0,137.09,137.06,10.0]
[1720735903679,20.0,137.1,137.06,10.0]
[1720735904683,18.2314,137.13,137.06,10.0]
[1720735904684,34.7501,137.16,137.07,16.0534]
[1720735904885,7.2914,137.15,137.1,10.0]
[1720735905074,23.8136,137.16,137.11,10.0]
[1720735905279,7.2909,137.16,137.11,10.0]
[1720735905478,7.2909,137.16,137.12,10.0]
[1720735906273,27.2913,137.15,137.12,10.0]
[1720735909502,20.0,137.15,137.12,10.0]
[1720735909895,27.2912,137.15,137.12,10.0]
[1720735910093,7.292,137.14,137.11,24.33]
[1720735910387,20.0,137.13,137.12,10.0]
[1720735911390,20.0,137.13,137.11,24.33]
[1720735911987,20.0,137.13,137.08,51.4241]
[1720735911988,20.0,137.13,137.08,55.34]
[1720735912194,7.2932,137.12,137.08,79.67]
[1720735912491,27.2934,137.11,137.08,65.34]
[1720735912701,20.0,137.11,137.08,10.0]
[1720735912891,20.0,137.11,137.04,40.0022]
[1720735912892,7.2964,137.06,137.04,40.0022]
[1720735913219,7.295,137.08,137.04,10.0]
[1720735913371,20.0,137.07,137.04,10.0]
[1720735914101,20.0,137.07,137.04,24.33]
[1720735914399,20.0,137.07,137.04,10.0]
[1720735914896,20.0,137.07,137.04,24.33]
[1720735915084,14.33,137.09,137.04,24.33]
[1720735915284,20.0,137.08,137.04,24.33]
[1720735916183,27.2951,137.08,137.04,24.33]
[1720735916376,20.0,137.08,137.04,24.33]
[1720735916777,14.33,137.09,137.05,10.0]
[1720735916976,20.0,137.08,137.05,10.0]
[1720735917595,27.295,137.08,137.05,10.0]
[1720735917976,27.295,137.08,137.04,10.0]
[1720735918702,20.0,137.08,137.04,10.0]
[1720735919186,20.0,137.08,137.04,24.33]
[1720735919385,2.16159738,137.13,137.07,10.0]
[1720735919592,21.6224,137.13,137.09,10.0]
[1720735919783,21.6229,137.12,137.07,24.33]
[1720735919980,21.6229,137.12,137.06,10.0]
[1720735919981,7.294,137.1,137.06,14.5]
[1720735920181,21.624,137.1,137.06,0.17]
[1720735920489,21.624,137.1,137.06,45.17]
[1720735920895,20.0,137.09,137.06,45.17]
[1720735921574,20.0,137.09,137.05,20.17]
[1720735921575,34.33,137.09,137.05,20.0]
[1720735922203,20.0,137.09,137.05,20.0]
[1720735922506,41.6246,137.09,137.05,20.0]
[1720735922680,7.2951,137.08,137.04,14.33]
[1720735922875,20.0,137.07,137.04,14.33]
[1720735923074,41.6245,137.09,137.05,10.0]
[1720735923496,20.0,137.09,137.03,20.0]
[1720735923699,14.33,137.06,137.03,10.0]
[1720735924001,20.0,137.05,137.03,10.0]
[1720735924584,34.33,137.05,137.01,10.0]
[1720735924804,14.33,137.04,137.01,10.0]
[1720735924995,20.0,137.03,137.01,10.0]
[1720735925394,20.0,137.03,136.99,10.0]
[1720735925595,41.6277,137.03,136.99,10.0]
[1720735925791,34.33,137.03,136.99,10.0]
[1720735926306,41.6277,137.03,136.98,10.0]
[1720735926503,41.6277,137.03,136.98,24.33]
[1720735926707,27.2977,137.03,136.98,10.0]
[1720735927406,27.2977,137.03,136.99,10.0]
[1720735927585,20.0,137.03,136.99,10.0]
[1720735929511,20.0,137.03,137.01,10.0]
[1720735929801,20.0,137.04,137.01,10.0]
[1720735931299,20.0,137.04,137.03,10.0]
[1720735931607,2.16159738,137.08,137.03,10.0]
[1720735931608,7.2954,137.08,137.03,10.0]
[1720735931812,7.2956,137.07,137.04,10.0]
[1720735931996,7.2956,137.07,137.03,10.0]
[1720735932191,7.2951,137.08,137.03,10.0]
[1720735932393,7.2945,137.09,137.05,10.0]
[1720735932811,7.2955,137.07,137.05,10.0]
[1720735933004,20.0,137.06,137.04,10.0]
[1720735933910,20.0,137.07,137.04,10.0]
[1720735934421,27.2956,137.07,137.04,10.0]
[1720735934602,7.296,137.06,137.03,10.0]
[1720735934796,20.0,137.07,137.04,10.0]
[1720735935105,20.0,137.07,137.05,10.0]
[1720735936289,27.2955,137.07,137.03,10.0]
[1720735936490,7.2962,137.06,137.03,10.0]
[1720735936715,20.0,137.07,137.02,10.0]
[1720735936716,7.297,137.05,137.02,10.0]
[1720735937091,20.0,137.04,137.02,10.0]
[1720735937296,27.2972,137.04,137.01,10.0]
[1720735937499,7.2977,137.03,136.99,10.0]
[1720735937707,27.2973,137.04,136.99,10.0]
[1720735937913,20.0,137.04,137.01,10.0]
[1720735938907,27.2967,137.05,137.01,10.0]
[1720735939111,7.2967,137.05,137.01,10.0]
[1720735939314,27.2975,137.04,137.0,10.0]
[1720735939610,20.0,137.03,137.0,10.0]
[1720735939817,20.0,137.03,136.99,10.0]
[1720735940003,27.2977,137.03,136.99,10.0]
[1720735941596,20.0,137.03,136.99,10.0]
[1720735942205,20.0,137.03,136.9,297.23]
[1720735942206,22.6231,137.02,136.95,10.0]
[1720735942400,7.2999,136.99,136.95,10.0]
[1720735942608,20.0,136.98,136.95,10.0]
[1720735943408,7.2994,137.0,136.95,10.0]
[1720735943409,20.0,136.99,136.95,10.0]
[1720735944721,27.2998,136.99,136.95,10.0]
[1720735945219,7.3003,136.98,136.95,10.0]
[1720735945399,20.0,136.97,136.95,10.0]
[1720735946103,27.301,136.97,136.95,10.0]
[1720735946310,27.301,136.97,136.91,10.0]
[1720735946311,27.301,136.97,136.91,20.0]
[1720735947100,7.3014,136.96,136.91,20.0]
[1720735947316,20.0,136.95,136.91,20.0]
[1720735947619,20.0,136.95,136.91,10.0]
[1720735947816,7.3025,136.94,136.91,10.0]
[1720735948019,20.0,136.93,136.91,10.0]
[1720735948516,20.0,136.94,136.91,10.0]
[1720735948712,27.3026,136.94,136.91,10.0]
[1720735949313,7.3031,136.93,136.88,10.0]
[1720735949520,20.0,136.92,136.88,10.0]
[1720735949914,20.0,136.92,136.9,10.0]
[1720735950107,20.0,136.93,136.9,10.0]
[1720735952904,20.0,136.93,136.92,10.0]
[1720735954706,22.6539,136.96,136.92,10.0]
[1720735954927,7.3009,136.97,136.93,1.45775697]
[1720735955132,7.3009,136.97,136.92,11.45775697]
[1720735955306,7.3009,136.97,136.93,1.46045204]
[1720735956006,20.0,136.96,136.93,1.46045204]
[1720735956419,20.0,136.96,136.92,10.0]
[1720735956611,20.0,136.96,136.92,11.46045308]
[1720735957016,27.3015,136.96,136.92,10.0]
[1720735957730,7.3026,136.94,136.92,10.0]
[1720735957929,7.3026,136.94,136.9,10.0]
[1720735958129,7.3031,136.93,136.9,10.0]
[1720735958514,20.0,136.96,136.92,10.0]
[1720735958712,18.2515,136.98,136.92,10.0]
[1720735958713,20.0,136.97,136.92,10.0]
[1720735958918,7.3022,136.95,136.92,10.0]
[1720735959120,27.3024,136.94,136.92,10.0]
[1720735959313,7.3024,136.94,136.92,10.0]
[1720735959514,20.0,136.93,136.92,10.0]
[1720735960734,7.3035,136.92,136.89,20.0]
[1720735961128,27.3031,136.93,136.89,20.0]
[1720735961836,7.3044,136.91,136.89,10.0]
[1720735962040,7.3035,136.92,136.89,10.0]
[1720735962209,20.0,136.91,136.89,10.0]
[1720735962727,20.0,136.91,136.87,10.8437497]
[1720735962728,7.3042,136.91,136.87,20.8437497]
[1720735962934,27.3047,136.9,136.87,10.8437497]
[1720735963135,7.3047,136.9,136.87,10.8437497]
[1720735963438,20.0,136.89,136.87,10.8437497]
[1720735964238,27.3051,136.89,136.87,0.8437497]
[1720735965224,20.0,136.89,136.87,0.8437497]
[1720735966227,20.0,136.89,136.87,10.8437497]
[1720735966434,20.0,136.9,136.87,10.8437497]
[1720735967135,27.304,136.91,136.87,10.8437497]
[1720735967338,20.0,136.91,136.87,10.8437497]
[1720735967718,20.0,136.91,136.87,20.8437497]
[1720735967929,20.0,136.91,136.89,10.0]
[1720735968126,7.3031,136.93,136.89,10.0]
[1720735968422,27.57239476,136.94,136.89,20.0]
[1720735968615,23.2492,136.94,136.89,20.0]
[1720735968816,15.9467,136.94,136.89,20.0]
[1720735969036,7.3035,136.92,136.89,20.0]
[1720735969622,20.0,136.91,136.89,20.0]
[1720735971343,20.0,136.91,136.89,10.0]
[1720735971835,27.3041,136.91,136.89,10.0]
[1720735972239,7.305,136.9,136.87,10.8437497]
[1720735972623,27.3051,136.89,136.87,0.8437497]
[1720735972843,7.3051,136.89,136.87,0.8437497]
[1720735975034,20.0,136.88,136.87,0.8437497]
[1720735976544,27.3056,136.88,136.87,0.8437497]
[1720735977123,20.0,136.88,136.87,0.8437497]
[1720735978538,7.3031,136.93,136.87,11.0137497]
[1720735978743,7.3031,136.93,136.89,10.0]
[1720735979043,15.9467,136.94,136.89,10.0]
[1720735979044,23.2493,136.94,136.89,10.0]
[1720735979225,7.303,136.93,136.89,10.0]
[1720735979940,7.303,136.93,136.87,1.0137497]
[1720735979941,27.3035,136.92,136.87,11.0137497]
[1720735980246,20.0,136.92,136.87,11.0137497]
[1720735980432,20.0,136.93,136.87,11.0137497]
[1720735980627,7.3036,136.92,136.87,11.0137497]
[1720735980846,20.0,136.91,136.87,11.0137497]
[1720735981054,15.9467,136.94,136.91,10.0]
[1720735981227,7.3027,136.94,136.89,10.0]
[1720735981625,7.303,136.93,136.89,10.0]
[1720735982542,20.0,136.92,136.89,10.0]
[1720735982739,27.3037,136.92,136.89,10.0]
[1720735982932,20.0,136.92,136.88,10.0]
[1720735983134,7.305,136.9,136.87,0.8437497]
[1720735983325,7.3056,136.88,136.87,0.8437497]
[1720735983526,20.0,136.88,136.87,10.8437497]
[1720735984148,20.0,136.88,136.87,0.8437497]
[1720735985745,27.3056,136.88,136.87,0.8437497]
[1720735985948,7.3074,136.85,136.82,10.0]
[1720735986135,20.0,136.84,136.82,10.0]
[1720735986540,27.3079,136.84,136.82,10.0]
[1720735986847,27.3079,136.84,136.81,10.0]
[1720735987052,7.3085,136.83,136.79,10.0]
[1720735987355,27.3089,136.82,136.78,50.01]
[1720735987528,20.0,136.81,136.78,50.01]
[1720735987728,20.0,136.81,136.79,10.0]
[1720735988276,23.0799,136.85,136.79,10.0]
[1720735988554,27.3078,136.84,136.79,10.0]
[1720735989554,20.0,136.84,136.78,50.01]
[1720735989734,20.0,136.84,136.79,10.0]
[1720735990446,7.3087,136.83,136.79,10.0]
[1720735990756,20.0,136.82,136.79,10.0]
[1720735991536,20.0,136.82,136.78,50.01]
[1720735991750,7.3092,136.82,136.78,50.01]
[1720735992050,20.0,136.81,136.78,50.01]
[1720735994533,20.0,136.84,136.78,50.01]
[1720735994730,7.3101,136.8,136.78,50.01]
[1720735994956,20.0,136.79,136.78,50.01]
[1720735995334,27.3104,136.79,136.78,50.01]
[1720735997152,43.1809,136.79,136.78,50.01]
[1720735997333,43.1809,136.79,136.78,32.94326429]
[1720735998739,43.1809,136.79,136.78,18.81326429]
[1720735999350,35.8705,136.79,136.78,18.81326429]
[1720736000134,43.1809,136.79,136.78,18.81326429]
[1720736003239,22.53970588,136.82,136.78,18.81326429]
[1720736003240,4.26680588,136.82,136.78,18.81326429]
[1720736003439,7.3094,136.81,136.78,18.81326429]
[1720736003650,7.31,136.8,136.78,18.81326429]
[1720736004353,7.3104,136.79,136.78,18.81326429]
[1720736004552,20.0,136.79,136.78,18.81326429]
[1720736006442,20.0,136.79,136.78,63.81326429]
[1720736007452,20.0,136.79,136.78,18.81326429]
[1720736011050,27.3104,136.79,136.78,18.81326429]
[1720736011654,27.3104,136.79,136.78,13.47892653]
[1720736014460,20.0,136.79,136.78,13.47892653]
[1720736015345,27.3104,136.79,136.78,13.47892653]
[1720736018280,27.3104,136.79,136.78,1e-08]
[1720736019756,35.90040064,136.79,136.78,1e-08]
[1720736020153,80.90040064,136.79,136.78,1e-08]
[1720736020659,81.24040064,136.79,136.78,1e-08]
[1720736021061,35.90040064,136.79,136.78,1e-08]
[1720736023448,80.90040064,136.79,136.78,1e-08]
[1720736023649,88.53536842,136.79,136.78,1e-08]
[1720736023845,7.3126,136.75,136.74,0.8437497]
[1720736024063,27.3126,136.75,136.74,0.8437497]
[1720736026163,20.0,136.75,136.74,0.8437497]
[1720736026971,27.3126,136.75,136.74,0.8437497]
[1720736027562,20.0,136.75,136.74,0.8437497]
[1720736028471,27.3126,136.75,136.74,0.8437497]
[1720736030472,31.63298211,136.75,136.74,0.8437497]
[1720736030669,35.90260064,136.75,136.74,0.8437497]
[1720736036160,27.3126,136.75,136.74,0.8437497]
[1720736040285,29.47419738,136.75,136.74,0.8437497]
[1720736041580,22.16159738,136.75,136.74,0.8437497]
[1720736041774,7.3112,136.78,136.74,0.8437497]
[1720736041962,15.7461,136.8,136.74,0.8437497]
[1720736041963,7.3117,136.77,136.74,0.8437497]
[1720736042159,7.3122,136.76,136.74,0.8437497]
[1720736042680,42.61140064,136.8,136.74,0.8437497]
[1720736042878,7.3116,136.77,136.74,0.8437497]
[1720736043072,20.0,136.76,136.74,0.8437497]
[1720736044585,7.3126,136.75,136.74,0.8437497]
[1720736044767,27.3126,136.75,136.74,0.8437497]
[1720736046991,20.0,136.75,136.74,0.8437497]
[1720736047495,27.3126,136.75,136.74,0.8437497]
[1720736051391,35.90260064,136.75,136.74,0.8437497]
[1720736053690,51.40810064,136.75,136.74,0.8437497]
[1720736053896,51.40810064,136.75,136.67,10.0]
[1720736053897,7.3154,136.7,136.67,10.0]
[1720736054091,20.0,136.69,136.67,10.0]
[1720736054298,20.0,136.69,136.65,10.0]
[1720736055775,27.3158,136.69,136.65,10.0]
[1720736055976,20.0,136.69,136.65,10.0]
[1720736057295,27.3159,136.69,136.63,10.0]
[1720736057501,7.3165,136.68,136.63,10.0]
[1720736058094,27.3169,136.67,136.63,10.0]
[1720736058306,20.0,136.67,136.65,10.0]
[1720736058604,2.16159738,136.71,136.65,10.0]
[1720736059283,2.16159738,136.71,136.67,10.0]
[1720736059785,2.16159738,136.71,136.69,10.0]
[1720736062691,22.16159738,136.71,136.69,10.0]
[1720736064599,22.16159738,136.71,136.67,10.0]
[1720736064794,22.16159738,136.71,136.69,10.0]
[1720736065102,4.32319476,136.72,136.71,10.0]
[1720736065401,7.3126,136.75,136.71,10.0]
[1720736066596,20.0,136.74,136.71,10.0]
[1720736068186,27.3135,136.74,136.7,10.0]
[1720736068586,20.0,136.74,136.71,10.0]
[1720736069184,15.90210064,136.76,136.71,10.0]
[1720736069185,27.3126,136.75,136.71,10.0]
[1720736070703,27.3126,136.75,136.71,24.41]
[1720736072209,20.0,136.75,136.71,24.41]
[1720736072404,27.3126,136.75,136.71,10.0]
[1720736072591,27.3126,136.75,136.72,14.41]
[1720736073203,27.3129,136.75,136.71,10.0]
[1720736073511,20.0,136.75,136.71,24.41]
[1720736074089,34.41,136.75,136.71,10.0]
[1720736074603,34.41,136.75,136.7,24.41]
[1720736074604,7.3131,136.74,136.7,10.0]
[1720736074802,20.0,136.73,136.7,10.0]
[1720736075003,20.0,136.73,136.7,24.41]
[1720736075594,20.0,136.74,136.7,24.41]
[1720736075809,21.7238,136.73,136.68,10.0]
[1720736075999,20.0,136.72,136.68,24.41]
[1720736076391,27.3142,136.72,136.67,10.0]
[1720736076593,41.7242,136.72,136.67,24.41]
[1720736076992,20.0,136.72,136.68,14.41]
[1720736077190,20.0,136.72,136.68,24.41]
[1720736077597,20.0,136.72,136.68,10.0]
[1720736077799,20.0,136.72,136.68,24.41]
[1720736078005,27.3144,136.72,136.68,24.41]
[1720736078197,27.3144,136.72,136.68,14.41]
[1720736078611,27.3144,136.72,136.67,24.41]
[1720736079200,41.7244,136.72,136.67,24.41]
[1720736079709,41.7244,136.72,136.67,10.0]
[1720736080213,20.0,136.72,136.66,10.0]
[1720736080518,14.41,136.7,136.66,10.0]
[1720736080705,20.0,136.69,136.66,10.0]
[1720736081017,20.0,136.69,136.66,24.41]
[1720736081190,20.0,136.69,136.67,10.0]
[1720736081396,20.0,136.72,136.68,14.41]
[1720736081806,20.0,136.72,136.67,10.0]
[1720736081990,27.3142,136.72,136.67,24.41]
[1720736082196,7.3148,136.71,136.67,24.41]
[1720736082418,7.3148,136.71,136.66,24.41]
[1720736082419,20.0,136.7,136.66,24.41]
[1720736083115,20.0,136.71,136.67,10.0]
[1720736083310,20.0,136.71,136.67,24.41]
[1720736083695,34.41,136.72,136.67,24.41]
[1720736084198,20.0,136.72,136.67,10.0]
[1720736084410,20.0,136.72,136.68,24.41]
[1720736084610,20.0,136.72,136.68,10.0]
[1720736084900,27.3142,136.72,136.68,10.0]
[1720736085211,20.0,136.72,136.68,10.0]
[1720736085613,27.3143,136.72,136.68,10.0]
[1720736086399,41.7243,136.72,136.68,10.0]
[1720736086924,34.41,136.72,136.68,10.0]
[1720736087108,20.0,136.72,136.68,10.0]
[1720736087414,22.8623,136.79,136.73,10.0]
[1720736087621,22.8623,136.79,136.75,24.41]
[1720736087622,30.1729,136.79,136.75,24.41]
[1720736087920,23.6218,136.79,136.75,24.41]
[1720736088221,23.6218,136.79,136.76,14.41]
[1720736088402,16.3114,136.79,136.76,14.41]
[1720736088601,23.6219,136.79,136.76,14.41]
[1720736088797,30.76600064,136.78,136.73,20.0]
[1720736089008,9.04500064,136.78,136.75,10.0]
[1720736089314,9.04500064,136.78,136.75,34.41]
[1720736090117,14.41,136.81,136.76,14.41]
[1720736090320,9.04500064,136.82,136.78,14.41]
[1720736091298,16.35430064,136.82,136.79,10.0]
[1720736091504,20.0,136.81,136.79,10.0]
[1720736091914,16.3114,136.85,136.81,10.0]
[1720736091915,30.7214,136.85,136.81,10.0]
[1720736092116,9.04500064,136.86,136.82,14.41]
[1720736092409,7.3078,136.84,136.81,24.41]
[1720736092615,7.3078,136.84,136.81,10.0]
[1720736095220,20.0,136.83,136.81,10.0]
[1720736096629,7.3092,136.82,136.78,20.0]
[1720736096826,20.0,136.81,136.78,20.0]
[1720736097129,20.0,136.83,136.78,20.0]
[1720736097310,27.3088,136.83,136.78,20.0]
[1720736097928,7.3088,136.82,136.78,20.0]
[1720736098304,7.3097,136.81,136.78,20.0]
[1720736099017,7.309,136.82,136.78,20.0]
[1720736099222,27.3094,136.81,136.77,0.17]
[1720736099420,7.3094,136.81,136.77,45.0]
[1720736099610,27.3103,136.8,136.77,45.0]
[1720736099810,7.3095,136.81,136.77,45.0]
[1720736100010,20.0,136.8,136.77,45.0]
[1720736100518,20.0,136.8,136.77,55.0]
[1720736100720,20.0,136.81,136.78,10.0]
[1720736102831,37.82500064,136.86,136.79,10.0]
[1720736102832,9.04500064,136.86,136.79,10.0]
[1720736103040,7.3079,136.84,136.8,10.0]
[1720736103214,9.04500064,136.86,136.8,10.0]
[1720736103413,9.04500064,136.86,136.81,10.0]
[1720736103733,7.3078,136.84,136.81,10.0]
[1720736104144,7.3074,136.85,136.81,10.0]
[1720736105334,20.0,136.84,136.81,10.0]
[1720736106425,7.3084,136.83,136.8,20.0]
[1720736106626,7.3084,136.83,136.8,10.0]
[1720736106838,7.3096,136.81,136.77,10.0]
[1720736107027,20.0,136.8,136.79,10.0]
[1720736108378,20.0,136.8,136.79,65.17]
[1720736108545,20.0,136.8,136.79,65.34]
[1720736108859,7.3078,136.84,136.79,65.34]
[1720736109054,20.0,136.83,136.79,55.34]
[1720736109364,27.3083,136.83,136.79,10.0]
[1720736109861,20.0,136.83,136.79,10.0]
[1720736110064,27.3084,136.83,136.79,10.0]
[1720736112565,27.3084,136.83,136.79,24.39]
[1720736112960,20.0,136.83,136.79,24.39]
[1720736113263,16.35210064,136.86,136.81,10.0]
[1720736113468,9.04500064,136.86,136.83,10.0]
[1720736113636,7.3077,136.85,136.82,10.0]
[1720736113972,7.3078,136.84,136.82,10.0]
[1720736114139,7.3084,136.83,136.8,10.0]
[1720736114463,14.39,136.83,136.8,10.0]
[1720736114643,20.0,136.82,136.8,10.0]
[1720736114966,20.0,136.83,136.8,10.0]
[1720736115175,27.3083,136.83,136.8,24.39]
[1720736115338,27.3083,136.83,136.8,10.0]
[1720736116055,27.3083,136.83,136.78,10.0]
[1720736116056,34.39,136.83,136.78,10.0]
[1720736116374,21.699,136.82,136.78,10.0]
[1720736116660,14.39,136.83,136.79,55.0]
[1720736116832,20.0,136.82,136.79,55.0]
[1720736117437,27.3089,136.82,136.78,24.39]
[1720736119072,20.0,136.82,136.81,10.0]
[1720736119479,9.04500064,136.86,136.81,10.0]
[1720736119692,14.39,136.87,136.82,24.39]
[1720736120038,14.39,136.86,136.82,10.0]
[1720736120562,31.80950064,136.88,136.83,10.0]
[1720736120563,7.3063,136.87,136.83,10.0]
[1720736120875,39.60830064,136.88,136.83,24.39]
[1720736121067,46.91430064,136.88,136.83,24.39]
[1720736121375,14.39,136.91,136.85,20.0]
[1720736121561,14.39,136.92,136.87,34.39]
[1720736122075,14.39,136.91,136.87,20.0]
[1720736122280,21.6951,136.9,136.87,10.0]
[1720736122574,21.6953,136.89,136.87,10.0]
[1720736122876,21.6953,136.89,136.85,10.0]
[1720736123656,14.39,136.91,136.88,10.0]